[Event "*** Titled Tuesday Blitz"]
[Site "Chess.com"]
[Date "2020.04.14"]
[Round "5"]
[White "dennisodessa"]
[Black "TomasKapitanchuk"]
[Result "0-1"]
[WhiteElo "2317"]
[BlackElo "2495"]
[TimeControl "180+1"]
[EndTime "10:50:27 PDT"]
[Termination "TomasKapitanchuk won by resignation"]

1. d4 {[%clk 0:03:00.4]} 1... Nf6 {[%clk 0:02:59.1]} 2. c4 {[%clk 0:03:00.5]}
2... c5 {[%clk 0:02:59.5]} 3. d5 {[%clk 0:03:00.6]} 3... e6 {[%clk 0:03:00]} 4.
Nc3 {[%clk 0:03:00.5]} 4... exd5 {[%clk 0:03:00.9]} 5. cxd5 {[%clk 0:03:01.4]}
5... d6 {[%clk 0:03:01.4]} 6. e4 {[%clk 0:03:01.5]} 6... g6 {[%clk 0:03:01.8]}
7. Bd3 {[%clk 0:03:01.5]} 7... Bg7 {[%clk 0:02:59.5]} 8. h3 {[%clk 0:03:01.8]}
8... a6 {[%clk 0:02:59.7]} 9. a4 {[%clk 0:03:00.5]} 9... Nh5 {[%clk 0:02:59.6]}
10. Nf3 {[%clk 0:02:55]} 10... Nd7 {[%clk 0:02:59.5]} 11. Be2 {[%clk 0:02:48.1]}
11... O-O {[%clk 0:02:55.7]} 12. O-O {[%clk 0:02:47.6]} 12... Re8 {[%clk
0:02:51.7]} 13. Be3 {[%clk 0:02:36]} 13... Nhf6 {[%clk 0:02:25.4]} 14. Nd2
{[%clk 0:02:25.9]} 14... c4 {[%clk 0:02:03.6]} 15. Bxc4 {[%clk 0:02:19.3]} 15...
Nc5 {[%clk 0:01:58.7]} 16. Qc2 {[%clk 0:02:12.7]} 16... a5 {[%clk 0:01:44.8]}
17. Bf4 {[%clk 0:01:44.8]} 17... Nh5 {[%clk 0:01:39.4]} 18. Bh2 {[%clk
0:01:43.4]} 18... Be5 {[%clk 0:01:11.7]} 19. Bxe5 {[%clk 0:01:35.7]} 19... dxe5
{[%clk 0:01:12.6]} 20. Bb5 {[%clk 0:01:27.4]} 20... Nf4 {[%clk 0:00:53.1]} 21.
Bxe8 {[%clk 0:01:21]} 21... Qg5 {[%clk 0:00:45.4]} 22. g3 {[%clk 0:01:00.1]}
22... Nxh3+ {[%clk 0:00:40.1]} 23. Kh2 {[%clk 0:00:53.5]} 23... Qh5 {[%clk
0:00:20.8]} 24. Nd1 {[%clk 0:00:27.1]} 24... Nf4+ {[%clk 0:00:15.3]} 25. Kg1
{[%clk 0:00:27]} 25... Ne2+ {[%clk 0:00:15.2]} 26. Kg2 {[%clk 0:00:25.4]} 26...
Bh3+ {[%clk 0:00:14.6]} 0-1

[Event "*** Titled Tuesday Blitz"]
[Site "Chess.com"]
[Date "2020.04.14"]
[Round "5"]
[White "martinbitel"]
[Black "MarcoCorvi"]
[Result "1-0"]
[WhiteElo "2612"]
[BlackElo "2139"]
[TimeControl "180+1"]
[EndTime "10:50:27 PDT"]
[Termination "martinbitel won by checkmate"]

1. d4 {[%clk 0:03:00.9]} 1... Nf6 {[%clk 0:02:56.6]} 2. c4 {[%clk 0:03:01]} 2...
g6 {[%clk 0:02:56.7]} 3. Nc3 {[%clk 0:02:59.9]} 3... Bg7 {[%clk 0:02:56.7]} 4.
e4 {[%clk 0:03:00.1]} 4... d6 {[%clk 0:02:56.7]} 5. Nf3 {[%clk 0:03:00.9]} 5...
O-O {[%clk 0:02:56.2]} 6. Be2 {[%clk 0:03:01.5]} 6... c5 {[%clk 0:02:53.9]} 7.
d5 {[%clk 0:02:59.1]} 7... e6 {[%clk 0:02:50.5]} 8. Nd2 {[%clk 0:02:59.2]} 8...
Na6 {[%clk 0:02:43]} 9. O-O {[%clk 0:02:58.4]} 9... Nc7 {[%clk 0:02:39.1]} 10.
Re1 {[%clk 0:02:57.2]} 10... Rb8 {[%clk 0:02:30.3]} 11. dxe6 {[%clk 0:02:43.7]}
11... Bxe6 {[%clk 0:02:24.6]} 12. Nf1 {[%clk 0:02:42.5]} 12... a6 {[%clk
0:02:18.1]} 13. Bf4 {[%clk 0:02:41.5]} 13... Nfe8 {[%clk 0:02:11.3]} 14. a4
{[%clk 0:02:41.2]} 14... f5 {[%clk 0:02:04.4]} 15. exf5 {[%clk 0:02:36.8]} 15...
Bxf5 {[%clk 0:01:54.1]} 16. Bg3 {[%clk 0:02:28.4]} 16... Ne6 {[%clk 0:01:33.5]}
17. Ne3 {[%clk 0:02:20.9]} 17... Nd4 {[%clk 0:01:32.1]} 18. Nxf5 {[%clk
0:02:06.1]} 18... gxf5 {[%clk 0:01:25.7]} 19. Bf4 {[%clk 0:01:49.4]} 19... Nf6
{[%clk 0:01:24.1]} 20. Bf3 {[%clk 0:01:49.1]} 20... Qd7 {[%clk 0:01:22.1]} 21.
Qd3 {[%clk 0:01:40.5]} 21... Rbe8 {[%clk 0:01:21.5]} 22. Nd5 {[%clk 0:01:37.6]}
22... Nxd5 {[%clk 0:01:19.4]} 23. Bxd5+ {[%clk 0:01:38.5]} 23... Kh8 {[%clk
0:01:18.9]} 24. a5 {[%clk 0:01:38.4]} 24... Be5 {[%clk 0:01:13.9]} 25. Bh6
{[%clk 0:01:25]} 25... Bg7 {[%clk 0:01:07.3]} 26. Bxg7+ {[%clk 0:01:24]} 26...
Qxg7 {[%clk 0:01:05.2]} 27. b4 {[%clk 0:00:55.6]} 27... Re5 {[%clk 0:00:59.4]}
28. bxc5 {[%clk 0:00:52.9]} 28... dxc5 {[%clk 0:00:59.8]} 29. Rxe5 {[%clk
0:00:47.9]} 29... Qxe5 {[%clk 0:01:00.7]} 30. Rb1 {[%clk 0:00:48.1]} 30... Re8
{[%clk 0:00:55.7]} 31. g3 {[%clk 0:00:44.5]} 31... Ne2+ {[%clk 0:00:46.5]} 32.
Kf1 {[%clk 0:00:36.4]} 32... Nc3 {[%clk 0:00:44.4]} 33. Rxb7 {[%clk 0:00:28.5]}
33... Qe1+ {[%clk 0:00:40.2]} 34. Kg2 {[%clk 0:00:28.3]} 34... Nd1 {[%clk
0:00:40.8]} 35. Qxf5 {[%clk 0:00:23.1]} 35... Qe5 {[%clk 0:00:28.3]} 36. Qxh7#
{[%clk 0:00:22]} 1-0

[Event "*** Titled Tuesday Blitz"]
[Site "Chess.com"]
[Date "2020.04.14"]
[Round "5"]
[White "2L8IWUN"]
[Black "florianschwabeneder"]
[Result "1-0"]
[WhiteElo "2351"]
[BlackElo "2512"]
[TimeControl "180+1"]
[EndTime "10:50:28 PDT"]
[Termination "2L8IWUN won by resignation"]

1. d4 {[%clk 0:03:00.9]} 1... Nf6 {[%clk 0:02:59.6]} 2. Nf3 {[%clk 0:03:00.4]}
2... d5 {[%clk 0:02:59.5]} 3. Bf4 {[%clk 0:03:00]} 3... c5 {[%clk 0:02:58.3]} 4.
e3 {[%clk 0:03:00.5]} 4... e6 {[%clk 0:02:57.8]} 5. Nbd2 {[%clk 0:02:59.1]} 5...
Bd6 {[%clk 0:02:57.7]} 6. Bg3 {[%clk 0:02:58.7]} 6... O-O {[%clk 0:02:56.5]} 7.
c3 {[%clk 0:02:58.9]} 7... Qc7 {[%clk 0:02:55.6]} 8. Bxd6 {[%clk 0:02:44.1]}
8... Qxd6 {[%clk 0:02:54.1]} 9. Bd3 {[%clk 0:02:45]} 9... Nc6 {[%clk 0:02:52.5]}
10. O-O {[%clk 0:02:32.8]} 10... e5 {[%clk 0:02:52.8]} 11. dxe5 {[%clk
0:02:23.7]} 11... Nxe5 {[%clk 0:02:53.7]} 12. Nxe5 {[%clk 0:02:22.6]} 12... Qxe5
{[%clk 0:02:54.6]} 13. Nf3 {[%clk 0:02:22.4]} 13... Qe7 {[%clk 0:02:53.5]} 14.
Re1 {[%clk 0:01:59.7]} 14... Bd7 {[%clk 0:02:52.6]} 15. c4 {[%clk 0:01:55]}
15... Bc6 {[%clk 0:02:50.7]} 16. cxd5 {[%clk 0:01:53.3]} 16... Nxd5 {[%clk
0:02:48.8]} 17. a3 {[%clk 0:01:51.1]} 17... Rad8 {[%clk 0:02:44.4]} 18. Qc2
{[%clk 0:01:51.3]} 18... g6 {[%clk 0:02:42.1]} 19. Rad1 {[%clk 0:01:47.4]} 19...
Rc8 {[%clk 0:02:28.8]} 20. e4 {[%clk 0:01:45.6]} 20... Nf4 {[%clk 0:02:26.6]}
21. Bc4 {[%clk 0:01:36.3]} 21... Rfd8 {[%clk 0:02:24.1]} 22. g3 {[%clk
0:01:33.7]} 22... Ne6 {[%clk 0:02:14.9]} 23. Bxe6 {[%clk 0:01:28.2]} 23... fxe6
{[%clk 0:02:02.5]} 24. Rxd8+ {[%clk 0:01:14.5]} 24... Rxd8 {[%clk 0:02:00.5]}
25. Ne5 {[%clk 0:01:10.5]} 25... Be8 {[%clk 0:01:56.1]} 26. Rd1 {[%clk
0:01:08.2]} 26... b6 {[%clk 0:01:52.9]} 27. Rxd8 {[%clk 0:01:05.7]} 27... Qxd8
{[%clk 0:01:52.6]} 28. Qd3 {[%clk 0:01:03.8]} 28... Qxd3 {[%clk 0:01:49]} 29.
Nxd3 {[%clk 0:01:04.7]} 29... Bc6 {[%clk 0:01:46]} 30. e5 {[%clk 0:01:03.2]}
30... g5 {[%clk 0:01:39.4]} 31. f4 {[%clk 0:01:00.7]} 31... h6 {[%clk
0:01:36.3]} 32. Kf2 {[%clk 0:00:58]} 32... Be4 {[%clk 0:01:26.9]} 33. Ke3 {[%clk
0:00:57.6]} 33... Bxd3 {[%clk 0:01:14.4]} 34. Kxd3 {[%clk 0:00:58.5]} 34... gxf4
{[%clk 0:01:14.7]} 35. gxf4 {[%clk 0:00:56.9]} 35... Kf7 {[%clk 0:01:14.9]} 36.
Kc4 {[%clk 0:00:53.3]} 36... Kg6 {[%clk 0:00:25.8]} 37. Kb5 {[%clk 0:00:51.8]}
37... Kf5 {[%clk 0:00:26]} 38. a4 {[%clk 0:00:49.1]} 38... Kxf4 {[%clk
0:00:22.8]} 39. Ka6 {[%clk 0:00:49]} 39... Kxe5 {[%clk 0:00:21.3]} 40. Kxa7
{[%clk 0:00:49]} 40... Kd6 {[%clk 0:00:20.5]} 41. Kxb6 {[%clk 0:00:46.3]} 41...
e5 {[%clk 0:00:20.7]} 42. a5 {[%clk 0:00:46.8]} 42... e4 {[%clk 0:00:19.4]} 43.
a6 {[%clk 0:00:46.6]} 43... e3 {[%clk 0:00:20.3]} 44. a7 {[%clk 0:00:44.6]}
44... e2 {[%clk 0:00:21.2]} 45. a8=Q {[%clk 0:00:43.7]} 45... e1=Q {[%clk
0:00:22]} 46. Qd8+ {[%clk 0:00:42.1]} 1-0

[Event "*** Titled Tuesday Blitz"]
[Site "Chess.com"]
[Date "2020.04.14"]
[Round "5"]
[White "Kirill_Klukin"]
[Black "MrChessSponge"]
[Result "1-0"]
[WhiteElo "2702"]
[BlackElo "2400"]
[TimeControl "180+1"]
[EndTime "10:50:28 PDT"]
[Termination "Kirill_Klukin won by resignation"]

1. d4 {[%clk 0:03:00.9]} 1... Nf6 {[%clk 0:02:59.2]} 2. Nf3 {[%clk 0:03:01.4]}
2... d5 {[%clk 0:02:59]} 3. c4 {[%clk 0:03:01.3]} 3... e6 {[%clk 0:02:58.1]} 4.
Nc3 {[%clk 0:03:01.1]} 4... c6 {[%clk 0:02:51.6]} 5. e3 {[%clk 0:02:59.8]} 5...
Nbd7 {[%clk 0:02:50.8]} 6. Qc2 {[%clk 0:02:56.5]} 6... Bd6 {[%clk 0:02:49.2]} 7.
Bd3 {[%clk 0:02:55.9]} 7... dxc4 {[%clk 0:02:45.3]} 8. Bxc4 {[%clk 0:02:56.8]}
8... b5 {[%clk 0:02:45.3]} 9. Be2 {[%clk 0:02:57.3]} 9... Bb7 {[%clk 0:02:44.6]}
10. O-O {[%clk 0:02:57.9]} 10... Rc8 {[%clk 0:02:43]} 11. Rd1 {[%clk 0:02:56.2]}
11... a6 {[%clk 0:02:27.7]} 12. e4 {[%clk 0:02:35.2]} 12... Be7 {[%clk
0:02:11.6]} 13. a3 {[%clk 0:02:31]} 13... O-O {[%clk 0:02:05.3]} 14. Bf4 {[%clk
0:02:28.8]} 14... Qb6 {[%clk 0:01:55.8]} 15. Rac1 {[%clk 0:02:27.2]} 15... Rfe8
{[%clk 0:01:52.6]} 16. h3 {[%clk 0:02:17.4]} 16... c5 {[%clk 0:01:35.9]} 17. d5
{[%clk 0:02:07.9]} 17... exd5 {[%clk 0:01:35]} 18. exd5 {[%clk 0:02:08.8]} 18...
Bd6 {[%clk 0:01:33.2]} 19. Be3 {[%clk 0:02:05.1]} 19... Qd8 {[%clk 0:01:25.3]}
20. Bg5 {[%clk 0:01:16.6]} 20... Ne5 {[%clk 0:01:16.5]} 21. Qf5 {[%clk
0:00:53.5]} 21... Qd7 {[%clk 0:01:00.3]} 22. Nh4 {[%clk 0:00:45.2]} 22... Qxf5
{[%clk 0:00:25.5]} 23. Nxf5 {[%clk 0:00:46.1]} 23... Bf8 {[%clk 0:00:25.3]} 24.
Bxf6 {[%clk 0:00:42]} 24... gxf6 {[%clk 0:00:24.6]} 25. f4 {[%clk 0:00:40.7]}
25... Nd7 {[%clk 0:00:23.3]} 26. Bf3 {[%clk 0:00:41]} 26... Nb6 {[%clk
0:00:21.8]} 27. Ne4 {[%clk 0:00:37.4]} 27... Bg7 {[%clk 0:00:14]} 28. Ned6
{[%clk 0:00:36.7]} 28... Rb8 {[%clk 0:00:12.7]} 29. Nxe8 {[%clk 0:00:36.4]}
29... Rxe8 {[%clk 0:00:13.6]} 30. Rxc5 {[%clk 0:00:36.4]} 30... Nc4 {[%clk
0:00:10.5]} 31. Rc7 {[%clk 0:00:34.1]} 31... Ba8 {[%clk 0:00:08.6]} 32. d6
{[%clk 0:00:29.7]} 1-0

[Event "*** Titled Tuesday Blitz"]
[Site "Chess.com"]
[Date "2020.04.14"]
[Round "5"]
[White "medalja"]
[Black "HashtagChess"]
[Result "1-0"]
[WhiteElo "2421"]
[BlackElo "1640"]
[TimeControl "180+1"]
[EndTime "10:50:28 PDT"]
[Termination "medalja won by resignation"]

1. d4 {[%clk 0:03:00.9]} 1... d5 {[%clk 0:02:58]} 2. c4 {[%clk 0:03:00.3]} 2...
c6 {[%clk 0:02:57.7]} 3. Nf3 {[%clk 0:03:00.8]} 3... Nf6 {[%clk 0:02:55]} 4. e3
{[%clk 0:02:59.1]} 4... e6 {[%clk 0:02:48.1]} 5. Bd3 {[%clk 0:02:55.3]} 5...
dxc4 {[%clk 0:02:44.4]} 6. Bxc4 {[%clk 0:02:54.6]} 6... b5 {[%clk 0:02:44.4]} 7.
Bb3 {[%clk 0:02:53.5]} 7... a6 {[%clk 0:02:43.5]} 8. O-O {[%clk 0:02:53.3]} 8...
Bb7 {[%clk 0:02:41.5]} 9. a4 {[%clk 0:02:53.8]} 9... b4 {[%clk 0:02:40.5]} 10.
Nbd2 {[%clk 0:02:53.5]} 10... a5 {[%clk 0:02:38.5]} 11. Bc2 {[%clk 0:02:48.1]}
11... c5 {[%clk 0:02:34.5]} 12. b3 {[%clk 0:02:48.2]} 12... Nbd7 {[%clk
0:02:33.3]} 13. Bb2 {[%clk 0:02:47.4]} 13... Rc8 {[%clk 0:02:30.7]} 14. e4
{[%clk 0:02:41.5]} 14... cxd4 {[%clk 0:02:20.2]} 15. Nxd4 {[%clk 0:02:09.4]}
15... Bc5 {[%clk 0:01:59.5]} 16. Re1 {[%clk 0:02:08.8]} 16... O-O {[%clk
0:01:57]} 17. e5 {[%clk 0:02:07.9]} 17... Nd5 {[%clk 0:01:52.8]} 18. Ne4 {[%clk
0:01:59.6]} 18... Be7 {[%clk 0:01:12.1]} 19. Qh5 {[%clk 0:01:46]} 19... Nf4
{[%clk 0:00:54.3]} 20. Qg4 {[%clk 0:01:24.8]} 20... Ng6 {[%clk 0:00:51.6]} 21.
Nd6 {[%clk 0:01:00.6]} 21... Bxd6 {[%clk 0:00:50.1]} 22. exd6 {[%clk 0:01:01.5]}
22... Nf6 {[%clk 0:00:40.9]} 23. Qg3 {[%clk 0:01:00.7]} 23... Qd7 {[%clk
0:00:29.2]} 24. Bd3 {[%clk 0:00:52.2]} 24... Rfd8 {[%clk 0:00:27.1]} 25. Nb5
{[%clk 0:00:52.3]} 25... Bc6 {[%clk 0:00:25.9]} 26. Rad1 {[%clk 0:00:51.4]}
26... Bxb5 {[%clk 0:00:24.4]} 27. Bxb5 {[%clk 0:00:52.3]} 27... Qb7 {[%clk
0:00:22.8]} 28. h4 {[%clk 0:00:50.8]} 28... Rc2 {[%clk 0:00:21.8]} 29. Bxf6
{[%clk 0:00:49.6]} 29... gxf6 {[%clk 0:00:21.5]} 30. h5 {[%clk 0:00:48.7]} 30...
Kg7 {[%clk 0:00:21.5]} 31. hxg6 {[%clk 0:00:48.9]} 31... hxg6 {[%clk 0:00:22.4]}
32. d7 {[%clk 0:00:45.4]} 32... Qb6 {[%clk 0:00:16.4]} 33. Re3 {[%clk
0:00:45.3]} 33... Rb2 {[%clk 0:00:15.4]} 34. Qf4 {[%clk 0:00:43.9]} 34... g5
{[%clk 0:00:14.2]} 35. Qe4 {[%clk 0:00:42.4]} 35... f5 {[%clk 0:00:13.7]} 36.
Qe5+ {[%clk 0:00:41]} 36... Kg6 {[%clk 0:00:14.2]} 37. Qxb2 {[%clk 0:00:41.1]}
1-0

[Event "*** Titled Tuesday Blitz"]
[Site "Chess.com"]
[Date "2020.04.14"]
[Round "5"]
[White "FM_Deuteronomio32"]
[Black "GM-2023"]
[Result "1-0"]
[WhiteElo "2232"]
[BlackElo "2068"]
[TimeControl "180+1"]
[EndTime "10:50:28 PDT"]
[Termination "FM_Deuteronomio32 won on time"]

1. e4 {[%clk 0:03:00.9]} 1... e5 {[%clk 0:02:59.6]} 2. Nf3 {[%clk 0:03:01]} 2...
Nc6 {[%clk 0:02:59.2]} 3. Bb5 {[%clk 0:03:00.8]} 3... Nf6 {[%clk 0:02:58.5]} 4.
O-O {[%clk 0:03:00.4]} 4... Nxe4 {[%clk 0:02:57.8]} 5. d4 {[%clk 0:03:01.1]}
5... Nd6 {[%clk 0:02:57.6]} 6. Bxc6 {[%clk 0:03:01.6]} 6... dxc6 {[%clk
0:02:58.5]} 7. dxe5 {[%clk 0:03:02.5]} 7... Nf5 {[%clk 0:02:58.8]} 8. Qxd8+
{[%clk 0:03:03.4]} 8... Kxd8 {[%clk 0:02:59.7]} 9. h3 {[%clk 0:03:04.3]} 9...
Be7 {[%clk 0:02:58.9]} 10. Nc3 {[%clk 0:03:04.4]} 10... Be6 {[%clk 0:02:58.1]}
11. g4 {[%clk 0:02:35.1]} 11... Nh4 {[%clk 0:02:56.8]} 12. Nxh4 {[%clk
0:02:35.6]} 12... Bxh4 {[%clk 0:02:57.7]} 13. f4 {[%clk 0:02:36.3]} 13... h5
{[%clk 0:02:44.8]} 14. f5 {[%clk 0:02:36]} 14... Bc4 {[%clk 0:02:42.5]} 15. Rd1+
{[%clk 0:02:35.3]} 15... Ke7 {[%clk 0:02:39.4]} 16. Kg2 {[%clk 0:02:26.4]} 16...
hxg4 {[%clk 0:02:38.4]} 17. hxg4 {[%clk 0:02:27.3]} 17... g6 {[%clk 0:02:31.1]}
18. Bf4 {[%clk 0:02:20.2]} 18... gxf5 {[%clk 0:02:29.3]} 19. gxf5 {[%clk
0:02:21.1]} 19... Rag8+ {[%clk 0:02:28.2]} 20. Kf3 {[%clk 0:02:21.6]} 20... Bg5
{[%clk 0:02:03.7]} 21. Rh1 {[%clk 0:02:21.8]} 21... Bxf4 {[%clk 0:01:57.4]} 22.
Kxf4 {[%clk 0:02:22.7]} 22... Rxh1 {[%clk 0:01:51]} 23. Rxh1 {[%clk 0:02:23.6]}
23... Rg2 {[%clk 0:01:51.3]} 24. Ne4 {[%clk 0:02:24.2]} 24... Rxc2 {[%clk
0:01:29.7]} 25. f6+ {[%clk 0:02:20]} 25... Ke6 {[%clk 0:01:29.7]} 26. Ng5+
{[%clk 0:02:16.5]} 26... Kd7 {[%clk 0:01:19.3]} 27. Rd1+ {[%clk 0:02:05.9]}
27... Ke8 {[%clk 0:01:06.8]} 28. b3 {[%clk 0:01:52.8]} 28... Bd5 {[%clk
0:01:04.7]} 29. Rd3 {[%clk 0:01:23.8]} 29... Rf2+ {[%clk 0:00:55.5]} 30. Kg4
{[%clk 0:01:22.8]} 30... Rg2+ {[%clk 0:00:51.3]} 31. Kf4 {[%clk 0:01:23]} 31...
Rf2+ {[%clk 0:00:41.3]} 32. Kg4 {[%clk 0:01:22.9]} 32... Rxa2 {[%clk 0:00:41.3]}
33. Rh3 {[%clk 0:01:22.8]} 33... Rg2+ {[%clk 0:00:18.5]} 34. Kf4 {[%clk
0:01:22.6]} 34... Rf2+ {[%clk 0:00:12.2]} 35. Kg4 {[%clk 0:01:22.7]} 35... Rg2+
{[%clk 0:00:06]} 36. Kf4 {[%clk 0:01:23.1]} 36... Rf2+ {[%clk 0:00:06.3]} 37.
Ke3 {[%clk 0:01:22.1]} 37... Rb2 {[%clk 0:00:05.8]} 38. Kd4 {[%clk 0:01:22.6]}
38... Rxb3 {[%clk 0:00:05.5]} 39. Rh8+ {[%clk 0:01:21.5]} 39... Kd7 {[%clk
0:00:05.9]} 40. Rh7 {[%clk 0:01:20.9]} 40... Rb4+ {[%clk 0:00:04.9]} 41. Ke3
{[%clk 0:01:20.9]} 41... Rg4 {[%clk 0:00:04.5]} 42. Nxf7 {[%clk 0:01:20.6]}
42... Bxf7 {[%clk 0:00:04.8]} 43. Rxf7+ {[%clk 0:01:21.5]} 43... Ke8 {[%clk
0:00:02.9]} 44. Rxc7 {[%clk 0:01:20.8]} 44... Rb4 {[%clk 0:00:02.3]} 45. e6
{[%clk 0:01:20.6]} 45... Kd8 {[%clk 0:00:02.1]} 46. Rh7 {[%clk 0:01:19.2]} 1-0

[Event "*** Titled Tuesday Blitz"]
[Site "Chess.com"]
[Date "2020.04.14"]
[Round "5"]
[White "LileKoridze"]
[Black "cukin84"]
[Result "1-0"]
[WhiteElo "2273"]
[BlackElo "2097"]
[TimeControl "180+1"]
[EndTime "10:50:29 PDT"]
[Termination "LileKoridze won by resignation"]

1. d4 {[%clk 0:02:55.3]} 1... f5 {[%clk 0:02:59.2]} 2. c4 {[%clk 0:02:54.8]}
2... Nf6 {[%clk 0:02:58.1]} 3. g3 {[%clk 0:02:55.4]} 3... g6 {[%clk 0:02:57.8]}
4. Bg2 {[%clk 0:02:55.7]} 4... Bg7 {[%clk 0:02:58]} 5. Nh3 {[%clk 0:02:55.1]}
5... O-O {[%clk 0:02:57.8]} 6. O-O {[%clk 0:02:55.3]} 6... d6 {[%clk 0:02:56.8]}
7. Nc3 {[%clk 0:02:55.1]} 7... Nc6 {[%clk 0:02:56.2]} 8. d5 {[%clk 0:02:38.4]}
8... Ne5 {[%clk 0:02:55.6]} 9. b3 {[%clk 0:02:37.1]} 9... c6 {[%clk 0:02:44.5]}
10. Nf4 {[%clk 0:02:36.6]} 10... g5 {[%clk 0:02:41.9]} 11. Ne6 {[%clk 0:02:35]}
11... Bxe6 {[%clk 0:02:41]} 12. dxe6 {[%clk 0:02:35.9]} 12... h6 {[%clk
0:02:40]} 13. Bb2 {[%clk 0:02:18.5]} 13... Qc8 {[%clk 0:02:38.6]} 14. e4 {[%clk
0:02:17.6]} 14... Qxe6 {[%clk 0:02:27.7]} 15. exf5 {[%clk 0:02:16.8]} 15... Qxf5
{[%clk 0:02:27.6]} 16. Qe2 {[%clk 0:01:53.4]} 16... Nd3 {[%clk 0:02:23.3]} 17.
Ba3 {[%clk 0:01:37.5]} 17... Rf7 {[%clk 0:01:59.2]} 18. Rad1 {[%clk 0:01:35.4]}
18... Ne5 {[%clk 0:01:53.2]} 19. Kh1 {[%clk 0:01:27.9]} 19... Raf8 {[%clk
0:01:49]} 20. f4 {[%clk 0:01:11.7]} 20... Neg4 {[%clk 0:01:41.2]} 21. Ne4 {[%clk
0:01:03.1]} 21... Nxe4 {[%clk 0:01:35.8]} 22. Bxe4 {[%clk 0:01:03.2]} 22... Qd7
{[%clk 0:01:32.7]} 23. Bg6 {[%clk 0:00:54.3]} 23... Rf6 {[%clk 0:01:32.3]} 24.
Bh5 {[%clk 0:00:51.7]} 24... Nxh2 {[%clk 0:01:25.6]} 25. Qxh2 {[%clk 0:00:49]}
25... gxf4 {[%clk 0:01:23.8]} 26. gxf4 {[%clk 0:00:45]} 26... Qf5 {[%clk
0:01:10.3]} 27. Bb2 {[%clk 0:00:42.8]} 27... Re6 {[%clk 0:00:54.5]} 28. Rg1
{[%clk 0:00:32.4]} 28... Qe4+ {[%clk 0:00:50.1]} 29. Qg2 {[%clk 0:00:32.7]}
29... Qxg2+ {[%clk 0:00:38.2]} 30. Rxg2 {[%clk 0:00:32.7]} 30... Rxf4 {[%clk
0:00:35.1]} 31. Rxg7+ {[%clk 0:00:30.7]} 31... Kf8 {[%clk 0:00:34.5]} 32. Rg4
{[%clk 0:00:18]} 32... Rf2 {[%clk 0:00:32.8]} 33. Bg7+ {[%clk 0:00:16.1]} 33...
Kg8 {[%clk 0:00:31.1]} 34. Bd4+ {[%clk 0:00:16.3]} 1-0

[Event "*** Titled Tuesday Blitz"]
[Site "Chess.com"]
[Date "2020.04.14"]
[Round "5"]
[White "tsvet2005"]
[Black "InitiatingASC"]
[Result "1-0"]
[WhiteElo "2681"]
[BlackElo "2441"]
[TimeControl "180+1"]
[EndTime "10:50:30 PDT"]
[Termination "tsvet2005 won by resignation"]

1. d4 {[%clk 0:03:00.9]} 1... d5 {[%clk 0:02:58.5]} 2. c4 {[%clk 0:03:01.2]}
2... e6 {[%clk 0:02:58.7]} 3. Nc3 {[%clk 0:03:01.6]} 3... c5 {[%clk 0:02:59]} 4.
cxd5 {[%clk 0:02:57.9]} 4... exd5 {[%clk 0:02:58.6]} 5. Nf3 {[%clk 0:02:57.8]}
5... Nc6 {[%clk 0:02:58.7]} 6. g3 {[%clk 0:02:58.3]} 6... Nf6 {[%clk 0:02:58.5]}
7. Bg2 {[%clk 0:02:58.6]} 7... Be7 {[%clk 0:02:59.2]} 8. O-O {[%clk 0:02:58.8]}
8... O-O {[%clk 0:02:59.8]} 9. dxc5 {[%clk 0:02:59.4]} 9... Bxc5 {[%clk
0:03:00.1]} 10. Na4 {[%clk 0:02:59.9]} 10... Be7 {[%clk 0:03:00.1]} 11. Be3
{[%clk 0:03:00.4]} 11... Ne4 {[%clk 0:02:59.8]} 12. Qb3 {[%clk 0:02:57.8]} 12...
Na5 {[%clk 0:02:55.2]} 13. Qd3 {[%clk 0:02:52.3]} 13... Nc4 {[%clk 0:02:50.5]}
14. Rad1 {[%clk 0:02:49]} 14... Nxe3 {[%clk 0:02:47]} 15. Qxe3 {[%clk
0:02:49.3]} 15... Be6 {[%clk 0:02:46.1]} 16. Nd4 {[%clk 0:02:46.6]} 16... Bg5
{[%clk 0:02:36.4]} 17. Qd3 {[%clk 0:02:42.3]} 17... Qa5 {[%clk 0:02:29.5]} 18.
Nxe6 {[%clk 0:02:26.7]} 18... fxe6 {[%clk 0:02:23.8]} 19. Bxe4 {[%clk
0:02:26.8]} 19... dxe4 {[%clk 0:02:24]} 20. Qxe4 {[%clk 0:02:27.7]} 20... Rae8
{[%clk 0:02:09.5]} 21. Nc3 {[%clk 0:02:24.1]} 21... Qb6 {[%clk 0:02:07.3]} 22.
b3 {[%clk 0:02:02.1]} 22... Rf7 {[%clk 0:02:06]} 23. h4 {[%clk 0:01:42.8]} 23...
Bd8 {[%clk 0:01:59.6]} 24. Rd3 {[%clk 0:01:14.9]} 24... Ref8 {[%clk 0:01:30.8]}
25. e3 {[%clk 0:01:13.7]} 25... Bc7 {[%clk 0:01:27.8]} 26. Ne2 {[%clk
0:01:09.9]} 26... Qa6 {[%clk 0:01:21]} 27. a4 {[%clk 0:00:59.6]} 27... b5 {[%clk
0:01:14.5]} 28. axb5 {[%clk 0:00:53.7]} 28... Qxb5 {[%clk 0:01:14.4]} 29. Nd4
{[%clk 0:00:50.3]} 29... Qd5 {[%clk 0:01:04.6]} 30. Qxd5 {[%clk 0:00:42]} 30...
exd5 {[%clk 0:01:04.9]} 31. Ne6 {[%clk 0:00:42.9]} 31... Rb8 {[%clk 0:01:01.6]}
32. Rxd5 {[%clk 0:00:32.2]} 32... Rxb3 {[%clk 0:00:59.9]} 33. Rc1 {[%clk
0:00:32.3]} 33... Rb7 {[%clk 0:00:54.3]} 34. h5 {[%clk 0:00:23.1]} 34... Re7
{[%clk 0:00:48]} 35. Nd4 {[%clk 0:00:20.3]} 35... Rb8 {[%clk 0:00:33.5]} 36. Nc6
{[%clk 0:00:19.6]} 1-0